bitfinex-derivatives/quotes_BTCF0:USTF0_20240830
["timestamp","ask_amount","ask_price","bid_price","bid_amount"]
[1725037930665,0.59530507,58613.0,58607.0,0.3608]
[1725037930969,1.09530507,58613.0,58607.0,0.3608]
[1725037932268,1.18061407,58613.0,58607.0,0.3608]
[1725037932470,1.43061407,58613.0,58607.0,0.3608]
[1725037933269,1.43061407,58613.0,58601.0,0.3608]
[1725037933270,1.94245407,58613.0,58601.0,0.3608]
[1725037933778,2.54245407,58613.0,58601.0,0.3608]
[1725037934977,2.481258,58613.0,58601.0,0.3608]
[1725037935173,1.881258,58613.0,58601.0,0.3608]
[1725037935376,1.631258,58613.0,58602.0,0.085325]
[1725037935571,0.5,58613.0,58609.0,0.25]
[1725037936075,0.585309,58613.0,58609.0,0.25]
[1725037936275,0.01477651,58614.0,58611.0,0.3608]
[1725037936477,0.5,58621.0,58611.0,0.3608]
[1725037936679,0.085305,58616.0,58612.0,0.08556508]
[1725037936884,0.085307,58615.0,58612.0,0.00025608]
[1725037937178,0.085309,58614.0,58612.0,0.00025608]
[1725037937368,0.085304,58617.0,58612.0,0.08556708]
[1725037937679,0.085309,58614.0,58612.0,0.00025608]
[1725037939278,0.085309,58614.0,58612.0,0.08556608]
[1725037939777,0.085302,58618.0,58612.0,0.00025608]
[1725037939981,0.3608,58620.0,58618.0,0.085302]
[1725037940175,0.085298,58621.0,58618.0,0.085302]
[1725037940481,0.085299,58620.0,58618.0,0.085302]
[1725037941380,0.085299,58620.0,58617.0,0.6108]
[1725037941381,0.01490187,58623.0,58622.0,0.085296]
[1725037941579,0.01490187,58623.0,58622.0,0.335296]
[1725037942079,0.01490187,58623.0,58622.0,1.325296]
[1725037942483,0.01490187,58623.0,58622.0,1.686096]
[1725037944977,0.10019687,58623.0,58622.0,0.3608]
[1725037945786,0.01490187,58623.0,58622.0,0.446096]
[1725037945986,0.0853,58619.0,58618.0,0.99148]
[1725037946280,0.0853,58619.0,58618.0,0.99]
[1725037946586,0.01490187,58623.0,58618.0,0.99]
[1725037946779,0.085297,58622.0,58618.0,1.0753]
[1725037947078,0.0853,58619.0,58618.0,0.99]
[1725037947283,0.3706,58619.0,58618.0,0.99]
[1725037947479,0.585302,58618.0,58617.0,0.3608]
[1725037947882,1.182404,58618.0,58617.0,0.3608]
[1725037948187,1.24359701,58618.0,58617.0,0.3608]
[1725037949387,1.24359701,58618.0,58613.0,0.99148]
[1725037949388,0.085308,58614.0,58613.0,0.00148]
[1725037949583,0.085309,58613.0,58612.0,0.00025608]
[1725037950893,0.085303,58617.0,58612.0,0.00025608]
[1725037951190,0.5,58620.0,58615.0,0.2]
[1725037951191,0.0853,58620.0,58615.0,0.2]
[1725037951387,0.0853,58620.0,58618.0,0.2]
[1725037951786,0.0853,58620.0,58618.0,0.7157]
[1725037952092,0.09741416,58620.0,58618.0,0.7157]
[1725037955191,0.09741416,58620.0,58618.0,0.5157]
[1725037955584,0.09741416,58620.0,58618.0,0.601002]
[1725037956191,0.0853,58619.0,58618.0,0.5157]
[1725037956392,0.0853,58619.0,58616.0,0.085304]
[1725037956593,0.0853,58619.0,58617.0,0.085303]
[1725037957299,0.085302,58618.0,58612.0,0.14305608]
[1725037957498,0.085305,58616.0,58613.0,0.085308]
[1725037957699,0.085302,58618.0,58612.0,0.14305608]
[1725037958195,0.085298,58621.0,58615.0,0.2]
[1725037958396,0.01222318,58623.0,58620.0,0.085298]
[1725037958891,0.085296,58622.0,58620.0,0.085298]
[1725037959590,0.085297,58621.0,58620.0,0.085298]
[1725037959992,0.01222318,58623.0,58617.0,0.085303]
[1725037960192,0.01222318,58623.0,58619.0,0.0853]
[1725037960193,0.09751818,58623.0,58619.0,0.0853]
[1725037960496,0.01222318,58623.0,58622.0,0.085296]
[1725037960698,9e-08,58623.0,58622.0,0.646096]
[1725037961204,9e-08,58623.0,58622.0,1.636096]
[1725037961408,9e-08,58623.0,58622.0,2.918448]
[1725037961609,0.0046,58640.0,58636.0,0.085275]
[1725037961901,0.585269,58641.0,58638.0,0.085272]
[1725037962096,0.3608,58649.0,58643.0,0.085264]
[1725037962291,0.3608,58649.0,58644.0,0.2]
[1725037962292,0.36916839,58649.0,58644.0,0.2]
[1725037962491,0.45442539,58649.0,58644.0,0.2]
[1725037963198,0.085262,58646.0,58641.0,0.20025585]
[1725037963703,0.085262,58646.0,58642.0,0.3608]
[1725037964093,0.02048433,58649.0,58645.0,0.2]
[1725037964299,0.50088,58650.0,58648.0,0.2]
[1725037964494,0.585253,58652.0,58648.0,0.2]
[1725037964698,0.585253,58652.0,58646.0,0.085261]
[1725037964896,0.085253,58652.0,58646.0,0.085261]
[1725037965306,0.5,58651.0,58646.0,0.085261]
[1725037965495,0.585254,58651.0,58646.0,0.085261]
[1725037965801,0.085254,58651.0,58646.0,0.085261]
[1725037966004,0.44221163,58655.0,58643.0,0.1438]
[1725037966005,0.51913408,58655.0,58648.0,0.646057]
[1725037966205,0.3727132,58655.0,58648.0,0.3608]
[1725037966499,0.3727132,58655.0,58651.0,0.2]
[1725037966800,0.3727132,58655.0,58652.0,0.99]
[1725037966801,0.38127454,58655.0,58652.0,0.99]
[1725037967203,0.38127454,58655.0,58654.0,0.085249]
[1725037967394,0.98127454,58655.0,58654.0,0.085249]
[1725037967594,1.49275454,58655.0,58654.0,0.085249]
[1725037967795,1.55392642,58655.0,58654.0,0.085249]
[1725037968303,1.55392642,58655.0,58652.0,0.0014]
[1725037968602,0.085253,58652.0,58648.0,0.3608]
[1725037968795,0.285257,58649.0,58648.0,0.3608]
[1725037969201,0.596777,58649.0,58648.0,0.3608]
[1725037969502,0.14642588,58651.0,58648.0,0.5608]
[1725037969703,0.1496,58654.0,58649.0,0.085257]
[1725037969896,0.085254,58651.0,58648.0,0.5608]
[1725037970094,0.09385971,58651.0,58648.0,0.5608]
[1725037970397,0.37367321,58655.0,58648.0,0.646057]
[1725037970700,0.4579622,58655.0,58650.0,0.085254]
[1725037970906,0.4579622,58655.0,58651.0,0.085253]
[1725037971204,0.085255,58651.0,58648.0,0.3608]
[1725037971390,0.085264,58644.0,58642.0,0.3608]
[1725037971596,0.085265,58643.0,58642.0,0.3608]
[1725037972897,0.3019,58648.0,58642.0,0.3608]
[1725037972898,0.13879562,58648.0,58642.0,0.3608]
[1725037973096,0.085265,58643.0,58642.0,0.3608]
[1725037973406,0.13879562,58648.0,58642.0,0.3608]
[1725037973606,0.085261,58646.0,58643.0,0.2]
[1725037973802,0.3618,58650.0,58645.0,0.2]
[1725037973803,0.3608,58650.0,58645.0,0.2]
[1725037974005,0.446056,58650.0,58646.0,0.085261]
[1725037974211,0.085258,58648.0,58645.0,0.2]
[1725037974696,0.4582807,58650.0,58645.0,0.285263]
[1725037975305,0.0974807,58650.0,58645.0,0.285263]
[1725037975512,0.0974807,58650.0,58646.0,0.08526]
[1725037976005,0.0122247,58650.0,58648.0,0.085258]
[1725037976200,0.085255,58651.0,58648.0,0.085258]
[1725037976600,0.085256,58650.0,58645.0,0.2]
[1725037977193,0.51219093,58654.0,58648.0,0.085258]
[1725037977408,0.085252,58652.0,58649.0,0.2]
[1725037978013,0.085252,58652.0,58648.0,0.085258]
[1725037978014,0.51219093,58654.0,58651.0,0.2]
[1725037978306,0.51219093,58654.0,58653.0,0.446051]
[1725037978307,0.01219093,58654.0,58653.0,0.446051]
[1725037978521,0.085241,58660.0,58655.0,0.085248]
[1725037978701,0.085244,58658.0,58655.0,0.285248]
[1725037979202,0.51231229,58661.0,58655.0,0.2]
[1725037979405,0.01231229,58661.0,58659.0,0.3608]
[1725037979705,0.09390667,58662.0,58659.0,0.3608]
[1725037979910,0.09390667,58662.0,58660.0,0.08524]
[1725037981005,0.00866867,58662.0,58660.0,0.08524]
[1725037981203,0.00866867,58662.0,58659.0,0.3608]
[1725037981204,0.01203601,58662.0,58661.0,0.085239]
[1725037981402,0.01203601,58662.0,58661.0,0.285239]
[1725037981616,0.5,58667.0,58661.0,0.2]
[1725037981804,0.3608,58669.0,58659.0,0.3608]
[1725037981805,0.36168,58669.0,58666.0,0.2]
[1725037982108,0.5,58671.0,58666.0,0.2]
[1725037982312,0.5,58671.0,58670.0,0.5608]
[1725037982521,0.285225,58671.0,58670.0,0.3608]
[1725037982809,0.285225,58671.0,58665.0,0.1507]
[1725037982810,0.5,58670.0,58665.0,0.235933]
[1725037983013,0.2,58667.0,58666.0,0.99]
[1725037983200,0.2,58667.0,58664.0,0.3608]
[1725037983397,0.2,58667.0,58655.0,0.004]
[1725037983398,0.446033,58665.0,58655.0,0.004]
[1725037983610,0.085248,58655.0,58652.0,0.3608]
[1725037984508,0.585248,58655.0,58652.0,0.3608]
[1725037984712,0.59737258,58655.0,58652.0,0.3608]
[1725037985013,0.82762058,58655.0,58647.0,0.1507]
[1725037985202,0.95202058,58655.0,58647.0,0.1507]
[1725037985398,1.37825258,58655.0,58647.0,0.1507]
[1725037987212,1.4394194,58655.0,58647.0,0.1507]
[1725037988017,0.9279394,58655.0,58650.0,0.3608]
[1725037988214,1.37825258,58655.0,58650.0,0.3608]
[1725037988408,1.4394194,58655.0,58650.0,0.3608]
[1725037988715,1.4394194,58655.0,58647.0,0.1507]
[1725037988716,1.5246674,58655.0,58647.0,0.1507]
[1725037988906,1.8854674,58655.0,58647.0,0.1507]
[1725037990314,2.0854674,58655.0,58647.0,0.1507]
[1725037990923,0.085265,58643.0,58642.0,0.004]
[1725037991111,0.285258,58648.0,58637.0,0.1519]
[1725037991112,0.2,58644.0,58637.0,0.1519]
[1725037991311,0.085271,58639.0,58637.0,0.1519]
[1725037992209,0.15507889,58639.0,58637.0,0.1519]
[1725037992710,0.09391207,58639.0,58637.0,0.1519]
[1725037993022,0.085271,58639.0,58637.0,0.1519]
[1725037993321,0.085267,58642.0,58637.0,0.237174]
[1725037993531,0.09392273,58641.0,58637.0,0.237174]
[1725037993815,0.085268,58641.0,58637.0,0.237174]
[1725037994022,0.00868545,58641.0,58637.0,0.1519]
[1725037994315,0.285271,58639.0,58637.0,0.1519]
[1725037995021,0.2,58639.0,58637.0,0.1519]
[1725037995222,0.00872983,58641.0,58637.0,0.1519]
[1725037995223,0.09399883,58641.0,58637.0,0.1519]
[1725037995522,0.085269,58641.0,58637.0,0.1519]
[1725037995717,0.09381192,58641.0,58637.0,0.1519]
[1725037996417,0.01229145,58644.0,58637.0,0.1519]
[1725037996418,0.01229145,58644.0,58642.0,0.085265]
[1725037996613,0.01229145,58644.0,58643.0,0.1569]
[1725037996809,0.01229145,58644.0,58639.0,0.08527]
[1725037997019,0.085271,58639.0,58638.0,0.3608]
[1725037997219,0.0939078,58639.0,58638.0,0.3608]
[1725037997423,0.0086368,58639.0,58633.0,0.00025585]
[1725037997716,0.2,58637.0,58634.0,0.085278]
[1725037997921,0.0084879,58636.0,58634.0,0.085278]
[1725037999309,0.5,58641.0,58635.0,0.446077]
[1725037999513,0.01229145,58644.0,58642.0,0.085267]
[1725037999816,0.21229145,58644.0,58643.0,0.1524]
[1725038000116,0.01229145,58644.0,58643.0,0.1524]
[1725038000421,0.01229145,58644.0,58643.0,0.237665]
[1725038003520,0.01229145,58644.0,58643.0,0.52293]
[1725038003724,0.00025507,58644.0,58643.0,0.52293]
[1725038003918,0.00025507,58644.0,58643.0,0.237665]
[1725038004220,0.00025507,58644.0,58643.0,1.227665]
[1725038005321,0.00025507,58644.0,58640.0,0.3608]
[1725038005322,0.085268,58641.0,58640.0,0.3608]
[1725038005521,0.285268,58641.0,58640.0,0.3608]
[1725038005725,0.00025507,58644.0,58640.0,0.3608]
[1725038005915,0.00025507,58644.0,58643.0,0.085265]
[1725038006417,0.00025507,58644.0,58643.0,1.36053]
[1725038006623,0.00025507,58644.0,58643.0,1.275265]
[1725038010622,0.28551907,58644.0,58643.0,0.99]
[1725038010826,0.085268,58641.0,58640.0,0.3608]
[1725038011022,0.08551907,58644.0,58640.0,0.3608]
[1725038011828,0.08551907,58644.0,58641.0,0.085268]
[1725038012728,0.08551907,58644.0,58642.0,0.085267]
[1725038013528,0.00025507,58644.0,58643.0,0.085265]
[1725038014629,0.20025507,58644.0,58640.0,0.446069]
[1725038014832,0.085268,58642.0,58640.0,0.446069]
[1725038015128,0.00835644,58641.0,58640.0,0.446069]
[1725038015732,0.085268,58642.0,58640.0,0.3608]
[1725038015936,0.00844263,58641.0,58640.0,0.3608]
[1725038016431,0.09371063,58641.0,58640.0,0.3608]
[1725038016633,0.255813,58639.0,58638.0,0.00148]
[1725038016830,0.255813,58639.0,58627.0,0.004]
[1725038016831,0.170558,58634.0,58627.0,0.004]
[1725038017031,0.731358,58634.0,58625.0,0.1509]
[1725038017339,1.28148323,58634.0,58625.0,0.1509]
[1725038017536,0.08529,58626.0,58625.0,0.1509]
[1725038017721,0.08529,58626.0,58620.0,0.145]
[1725038017722,0.2,58626.0,58618.0,0.085301]
[1725038018035,0.25,58621.0,58618.0,0.085301]
[1725038020531,0.085296,58623.0,58619.0,0.0853]
[1725038020727,0.09737866,58623.0,58619.0,0.0853]
[1725038020928,0.09737866,58623.0,58621.0,0.3608]
[1725038021130,0.085296,58622.0,58621.0,0.3608]
[1725038022731,0.170592,58622.0,58621.0,0.3608]
[1725038023035,0.170592,58622.0,58614.0,0.00025585]
[1725038023036,0.170612,58615.0,58614.0,0.00025585]
[1725038023333,0.531412,58615.0,58614.0,0.00025585]
[1725038023733,0.670612,58615.0,58614.0,0.00025585]
[1725038024233,0.085321,58605.0,58604.0,0.3608]
[1725038024431,0.335321,58605.0,58604.0,0.3608]
[1725038024941,0.34390127,58605.0,58604.0,0.3608]
[1725038025831,0.34490127,58605.0,58604.0,0.3618]
[1725038026430,0.34390127,58605.0,58604.0,0.3608]
[1725038026634,0.34490127,58605.0,58604.0,0.3618]
[1725038027432,0.34490127,58605.0,58604.0,0.3628]
[1725038027633,0.001,58605.0,58604.0,0.448122]
[1725038027842,0.01322421,58605.0,58604.0,0.448122]
[1725038028135,0.001,58605.0,58604.0,0.448122]
[1725038028336,0.75,58608.0,58604.0,0.448122]
[1725038028640,0.835317,58608.0,58604.0,0.448122]
[1725038028836,0.84381132,58608.0,58604.0,0.446122]
[1725038029036,0.25849432,58608.0,58604.0,0.447122]
[1725038029231,0.25849432,58608.0,58604.0,0.3618]
[1725038029232,0.085319,58607.0,58604.0,0.3618]
[1725038029741,0.085321,58605.0,58604.0,0.3628]
[1725038030536,0.085321,58605.0,58604.0,1.3528]
[1725038031334,0.085319,58607.0,58604.0,1.3528]
[1725038031533,0.25,58608.0,58604.0,1.3528]
[1725038031734,0.25,58608.0,58607.0,0.085318]
[1725038032239,0.00452861,58608.0,58607.0,0.085318]
[1725038034649,0.00452861,58608.0,58607.0,0.087318]
[1725038035249,0.00452861,58608.0,58607.0,0.684516]
[1725038035641,0.00452861,58608.0,58607.0,0.683516]
[1725038035944,0.00452861,58608.0,58607.0,0.684516]
[1725038036135,0.00452861,58608.0,58607.0,0.599198]
[1725038037142,0.00452861,58608.0,58607.0,0.087318]
[1725038037652,0.00452861,58608.0,58607.0,0.086318]
[1725038039641,0.00452861,58608.0,58607.0,0.598198]
[1725038039845,0.00452861,58608.0,58607.0,0.086318]
[1725038041053,0.09855584,58608.0,58607.0,0.001]
[1725038041248,0.08984461,58608.0,58607.0,0.086318]
[1725038041455,0.00452861,58608.0,58607.0,1.283516]
[1725038043354,0.00452861,58608.0,58607.0,1.368834]
[1725038043563,0.00452861,58608.0,58607.0,1.38070415]
[1725038044849,0.00452861,58608.0,58607.0,0.78070415]
[1725038045458,0.00452861,58608.0,58607.0,1.38070415]
[1725038045645,0.00025585,58610.0,58609.0,0.255945]
[1725038045859,0.008,58622.0,58621.0,0.085297]
[1725038046154,0.01209357,58624.0,58622.0,0.085296]
[1725038046368,0.085287,58628.0,58627.0,0.085287]
[1725038046750,0.085287,58628.0,58627.0,0.99]
[1725038048153,0.170574,58628.0,58627.0,0.001]
[1725038048754,0.244487,58628.0,58627.0,0.002]
[1725038050450,0.244487,58628.0,58627.0,0.001]
[1725038050644,0.244487,58628.0,58627.0,0.002]
[1725038051863,1.356207,58628.0,58627.0,0.002]
[1725038052053,0.17059,58623.0,58622.0,0.00025585]
[1725038052562,1.28235,58623.0,58622.0,0.00025585]
[1725038052761,1.43835,58623.0,58622.0,0.00025585]
[1725038052953,2.29915,58623.0,58622.0,0.00025585]
[1725038053363,2.29915,58623.0,58622.0,0.00225585]
[1725038053955,2.29915,58623.0,58622.0,0.00125585]
[1725038054154,2.29915,58623.0,58622.0,0.00225585]
[1725038054960,2.29915,58623.0,58622.0,0.00125585]
[1725038055162,2.30015,58623.0,58622.0,0.00225585]
[1725038055366,2.3613559,58623.0,58622.0,0.00225585]
[1725038055750,2.3603559,58623.0,58622.0,0.00125585]
[1725038056065,2.3633559,58623.0,58622.0,0.00225585]
[1725038056266,0.085306,58615.0,58610.0,0.004]
[1725038056461,0.2,58612.0,58605.0,0.08532]
[1725038056762,0.2,58606.0,58605.0,0.08532]
[1725038056986,0.20669423,58606.0,58605.0,0.08532]
[1725038057165,0.20669423,58606.0,58603.0,0.3608]
[1725038057854,0.20669423,58606.0,58605.0,0.001]
[1725038058057,0.79201323,58606.0,58605.0,0.001]
[1725038058262,0.20669423,58606.0,58605.0,0.001]
[1725038058466,0.5,58606.0,58605.0,0.086321]
[1725038058957,0.00025585,58611.0,58608.0,0.085315]
[1725038059154,0.00025585,58611.0,58608.0,0.446115]
[1725038059554,0.2,58609.0,58608.0,0.446115]
[1725038060263,0.20834496,58609.0,58608.0,0.446115]
[1725038060670,0.21234496,58609.0,58608.0,0.447115]
[1725038061369,0.22077494,58609.0,58608.0,0.446115]
[1725038061668,0.22477494,58609.0,58608.0,0.447115]
[1725038062059,0.22477494,58609.0,58608.0,0.448115]
[1725038062260,0.28598084,58609.0,58608.0,0.448115]
[1725038062558,0.22477494,58609.0,58608.0,0.448115]
[1725038062761,0.22877494,58609.0,58608.0,0.448115]
[1725038062967,0.22877494,58609.0,58608.0,0.447115]
[1725038063170,0.22877494,58609.0,58608.0,0.448115]
[1725038064873,0.31408994,58609.0,58608.0,0.002]
[1725038065066,0.81408994,58609.0,58608.0,0.002]
[1725038066365,0.81308994,58609.0,58608.0,0.002]
[1725038066678,0.81208994,58609.0,58608.0,0.002]
[1725038067871,0.31208994,58609.0,58608.0,0.002]
[1725038068584,0.22677494,58609.0,58608.0,0.087316]
[1725038069075,0.21842998,58609.0,58608.0,0.087316]
[1725038069570,0.22684497,58609.0,58608.0,0.087316]
[1725038069960,0.22384497,58609.0,58608.0,0.086316]
[1725038070161,0.22684497,58609.0,58608.0,0.087316]
[1725038070362,0.22384497,58609.0,58608.0,0.086316]
[1725038070570,0.01842998,58609.0,58608.0,0.087316]
[1725038072377,0.01842998,58609.0,58608.0,1.077316]
[1725038072869,0.01542998,58609.0,58608.0,1.076316]
[1725038073177,0.01842998,58609.0,58608.0,1.077316]
[1725038073677,0.01542998,58609.0,58608.0,1.076316]
[1725038073878,0.02418306,58609.0,58608.0,1.076316]
[1725038074073,0.006,58609.0,58608.0,0.087316]
[1725038074762,0.006,58609.0,58608.0,0.172632]
[1725038074959,0.006,58609.0,58608.0,0.681732]
[1725038074960,0.01788707,58609.0,58608.0,0.681732]
[1725038075163,0.006,58609.0,58608.0,0.681732]
[1725038075569,0.003,58609.0,58608.0,0.680732]
[1725038075772,0.006,58609.0,58608.0,0.681732]
[1725038076170,0.00025585,58611.0,58610.0,0.255939]
[1725038076474,0.085297,58622.0,58621.0,0.085297]
[1725038076668,0.085297,58622.0,58621.0,0.3608]
[1725038077362,0.2,58624.0,58623.0,0.085295]
[1725038079176,0.21191328,58624.0,58623.0,0.085295]
[1725038079674,0.21191328,58624.0,58623.0,0.086295]
[1725038079877,0.21191328,58624.0,58623.0,0.087295]
[1725038082976,0.21191328,58624.0,58623.0,0.002]
[1725038082977,0.29720628,58624.0,58623.0,0.002]
[1725038083597,0.80896628,58624.0,58623.0,0.002]
[1725038083877,1.55545626,58624.0,58623.0,0.002]
[1725038084078,1.37016326,58624.0,58623.0,0.002]
[1725038084375,0.85840326,58624.0,58623.0,0.002]
[1725038084574,1.30896628,58624.0,58623.0,0.002]
[1725038084775,0.85840326,58624.0,58623.0,0.002]
[1725038085069,1.30896628,58624.0,58623.0,0.002]
[1725038085275,0.85840326,58624.0,58623.0,0.002]
[1725038085472,1.30896628,58624.0,58623.0,0.002]
[1725038088979,0.083296,58622.0,58620.0,0.085299]
[1725038089179,0.2,58621.0,58620.0,0.085299]
[1725038089381,0.7,58621.0,58620.0,0.085299]
[1725038089691,0.198,58621.0,58620.0,0.085299]
[1725038089981,0.698,58621.0,58620.0,0.085299]
[1725038090176,0.084299,58620.0,58618.0,0.085301]
[1725038090373,0.085302,58618.0,58617.0,0.148]
[1725038090579,0.7843,58619.0,58617.0,0.148]
[1725038090770,0.085302,58618.0,58617.0,0.148]
[1725038092281,0.083302,58618.0,58617.0,0.148]
[1725038092482,0.14450373,58618.0,58617.0,0.148]
[1725038092989,0.15250373,58618.0,58617.0,0.15]
[1725038093485,0.14750373,58618.0,58617.0,0.149]
[1725038093688,0.14950373,58618.0,58617.0,0.149]
[1725038093874,0.15250373,58618.0,58617.0,0.15]
[1725038094683,0.23780573,58618.0,58617.0,0.002]
[1725038094984,0.23780573,58618.0,58607.0,0.085318]
[1725038094985,0.5118,58617.0,58607.0,0.085318]
[1725038095180,0.5118,58617.0,58605.0,0.5117]
[1725038095181,0.085314,58610.0,58605.0,0.99]
[1725038095373,0.2,58606.0,58600.0,0.3608]
[1725038095574,0.085326,58602.0,58600.0,0.3608]
[1725038095782,0.06120173,58601.0,58600.0,0.3608]
[1725038095982,0.56020173,58601.0,58596.0,0.1509]
[1725038096183,0.285331,58598.0,58596.0,0.1509]
[1725038096683,0.2,58598.0,58596.0,0.1509]
[1725038096891,0.20838003,58598.0,58596.0,0.1509]
[1725038097185,0.20838003,58598.0,58596.0,0.1579]
[1725038097487,0.670664,58597.0,58596.0,0.007]
[1725038097686,0.170664,58597.0,58596.0,0.007]
[1725038097980,0.085332,58597.0,58596.0,0.007]
[1725038098385,0.085332,58597.0,58595.0,0.00025585]
[1725038098386,1.697292,58597.0,58595.0,0.00025585]
[1725038098680,1.697292,58597.0,58580.0,0.085357]
[1725038098681,0.085347,58587.0,58584.0,0.004]
[1725038098875,0.2,58585.0,58580.0,0.240257]
[1725038099078,0.199,58585.0,58580.0,0.240257]
[1725038099383,0.085347,58587.0,58580.0,0.240257]
[1725038099384,0.2,58582.0,58580.0,0.240257]
[1725038100084,0.2,58585.0,58581.0,0.3668]
[1725038100385,0.5,58584.0,58581.0,0.3668]
[1725038100987,0.5,58584.0,58582.0,0.2]
[1725038101286,0.01215532,58587.0,58586.0,0.085348]
[1725038101287,0.00025585,58587.0,58586.0,0.085348]
[1725038101791,0.00025585,58587.0,58582.0,0.3608]
[1725038101980,0.2,58584.0,58583.0,0.085353]
[1725038102285,0.70025585,58587.0,58583.0,0.085353]
[1725038102690,0.20025585,58587.0,58586.0,0.005]
[1725038102879,0.00025585,58587.0,58586.0,0.005]
[1725038103083,0.00025585,58587.0,58586.0,0.286348]
[1725038103281,0.51219951,58590.0,58589.0,0.085344]
[1725038103487,0.5,58596.0,58595.0,0.085335]
[1725038103687,0.2,58600.0,58596.0,0.085334]
[1725038103688,0.5,58597.0,58596.0,0.085334]
[1725038103993,0.085332,58598.0,58596.0,0.085334]
[1725038104192,0.2,58604.0,58600.0,0.085328]
[1725038104497,0.2,58604.0,58600.0,0.3608]
[1725038104498,0.22096039,58604.0,58600.0,0.3608]
[1725038104683,0.085324,58603.0,58601.0,0.085326]
[1725038104885,0.01231977,58604.0,58603.0,0.085324]
[1725038105083,0.00025585,58608.0,58604.0,0.085322]
[1725038105384,0.00025585,58608.0,58607.0,0.646118]
[1725038106294,0.00025585,58608.0,58607.0,0.446118]
[1725038106492,0.00025585,58608.0,58607.0,0.646118]
[1725038107093,0.02025585,58608.0,58607.0,0.648118]
[1725038107493,0.02025585,58608.0,58607.0,1.638118]
[1725038108494,0.01625585,58608.0,58607.0,1.638118]
[1725038108696,0.01525585,58608.0,58607.0,1.638118]
[1725038109091,0.00525585,58608.0,58607.0,1.637118]
[1725038109300,0.01525585,58608.0,58607.0,1.638118]
[1725038114099,0.01525585,58608.0,58607.0,1.65042962]
[1725038114993,0.01525585,58608.0,58607.0,1.638118]
[1725038115995,0.00625585,58608.0,58607.0,1.722436]
[1725038116399,0.00525585,58608.0,58607.0,1.721436]
[1725038116597,0.00425585,58608.0,58607.0,1.721436]
[1725038116808,0.00425585,58608.0,58607.0,1.722436]
[1725038118089,0.00225585,58608.0,58607.0,1.722436]
[1725038118288,0.085308,58616.0,58615.0,0.085306]
[1725038118494,0.085308,58616.0,58615.0,0.446106]
[1725038119802,0.097308,58616.0,58615.0,0.448106]
[1725038120302,0.095308,58616.0,58615.0,0.447106]
[1725038121999,0.085308,58616.0,58615.0,0.447106]
[1725038122303,0.093308,58616.0,58615.0,0.448106]
[1725038122707,0.01222968,58618.0,58617.0,0.085303]
[1725038122898,0.00025585,58621.0,58619.0,0.0853]
[1725038122899,0.0853,58620.0,58619.0,0.0853]
[1725038123202,0.00025585,58621.0,58620.0,0.085299]
[1725038123404,0.20025585,58621.0,58620.0,0.446099]
[1725038123709,0.01237748,58621.0,58620.0,0.446099]
[1725038123903,0.01237748,58621.0,58620.0,0.646099]
[1725038124495,0.00025585,58621.0,58620.0,0.646099]
[1725038125101,0.20025585,58621.0,58620.0,0.446099]
[1725038125316,0.28755285,58621.0,58620.0,0.447099]
[1725038125608,0.20225585,58621.0,58620.0,0.447099]
[1725038125798,0.01225585,58621.0,58620.0,0.448099]
[1725038125993,0.01025585,58621.0,58620.0,0.447099]
[1725038126201,0.01225585,58621.0,58620.0,0.448099]
[1725038127003,0.21225585,58621.0,58620.0,0.3628]
[1725038127203,0.45875285,58621.0,58620.0,0.3628]
[1725038127397,0.17061,58616.0,58615.0,0.3608]
[1725038127598,0.085312,58611.0,58607.0,0.3286]
[1725038127798,0.285312,58611.0,58607.0,0.3286]
[1725038128294,0.785312,58611.0,58607.0,0.3286]
[1725038128500,0.783312,58611.0,58607.0,0.3286]
[1725038129312,0.936012,58611.0,58607.0,0.3286]
[1725038129694,0.932012,58611.0,58602.0,0.085325]
[1725038129897,0.939012,58611.0,58610.0,0.00125585]
[1725038130096,1.024324,58611.0,58610.0,0.00225585]
[1725038130297,0.085328,58600.0,58599.0,0.3648]
[1725038130501,0.285328,58600.0,58599.0,0.3608]
[1725038130709,0.26121518,58600.0,58599.0,0.3608]
[1725038130906,0.06121518,58600.0,58599.0,0.3608]
[1725038131607,0.06021518,58600.0,58599.0,0.446129]
[1725038132193,0.05921518,58600.0,58599.0,0.958089]
[1725038132606,0.05921518,58600.0,58599.0,1.047418]
[1725038133000,0.05921518,58600.0,58599.0,1.048418]
[1725038133197,0.05921518,58600.0,58599.0,1.648418]
[1725038133410,0.00025585,58605.0,58604.0,0.170644]
[1725038133710,0.00025585,58605.0,58604.0,2.321444]
[1725038133904,0.00025585,58605.0,58604.0,2.833364]
[1725038134213,0.00025585,58605.0,58604.0,2.918686]
[1725038134702,0.00425585,58605.0,58604.0,2.918686]
[1725038134903,0.00625585,58605.0,58604.0,2.918686]
[1725038135906,0.00025585,58605.0,58604.0,2.918686]
[1725038136211,0.00025585,58605.0,58604.0,2.923686]
[1725038136416,0.06145854,58605.0,58604.0,2.323686]
[1725038136605,0.06145854,58605.0,58604.0,2.238364]
[1725038136995,0.06145854,58605.0,58604.0,2.838364]
[1725038137199,0.06145854,58605.0,58604.0,2.238364]
[1725038137399,0.06145854,58605.0,58604.0,2.838364]
[1725038137603,0.00025585,58605.0,58604.0,2.838364]
[1725038137817,0.00025585,58605.0,58604.0,2.837364]
[1725038137999,0.00125585,58605.0,58604.0,2.833364]
[1725038138207,0.00125585,58605.0,58604.0,2.834364]
[1725038138398,0.00125585,58605.0,58604.0,2.919686]
[1725038138907,0.01196385,58615.0,58614.0,0.085308]
[1725038139103,0.0853,58620.0,58614.0,0.5608]
[1725038139511,0.0853,58620.0,58619.0,0.0853]
[1725038139701,0.2853,58620.0,58619.0,0.0853]